bitfinex-derivatives/quotes_BTCF0:USTF0_20240820
["timestamp","ask_amount","ask_price","bid_price","bid_amount"]
[1724152426280,0.00024725,60626.0,60625.0,0.09471573]
[1724152426772,0.00024725,60626.0,60625.0,0.10450405]
[1724152427382,0.00024725,60626.0,60625.0,0.19990405]
[1724152427582,0.00024725,60626.0,60625.0,0.19990414]
[1724152427772,0.00024725,60626.0,60625.0,0.35990414]
[1724152428285,0.00024725,60626.0,60625.0,0.40918545]
[1724152428680,0.00024725,60626.0,60625.0,0.35990414]
[1724152429287,0.00024725,60626.0,60625.0,0.40918545]
[1724152429880,0.00024725,60626.0,60625.0,0.38341363]
[1724152430085,0.00024725,60626.0,60625.0,0.40918546]
[1724152430289,0.00024725,60626.0,60625.0,0.42664854]
[1724152431180,0.06619025,60626.0,60625.0,0.25471583]
[1724152431490,0.09291563,60626.0,60625.0,0.09471821]
[1724152433279,0.06619025,60626.0,60625.0,0.09471821]
[1724152433676,0.06619025,60626.0,60625.0,0.068944]
[1724152433891,0.0929153,60626.0,60625.0,0.09471793]
[1724152434092,0.09291528,60626.0,60625.0,0.09471793]
[1724152434478,0.09291528,60626.0,60625.0,0.02877393]
[1724152434479,1.05369828,60626.0,60625.0,0.02877393]
[1724152434789,1.05369828,60626.0,60617.0,0.00012028]
[1724152434790,0.065952,60618.0,60617.0,0.00012028]
[1724152435087,0.81427981,60618.0,60617.0,0.00012028]
[1724152435495,0.787552,60618.0,60617.0,0.00012028]
[1724152435976,0.788552,60618.0,60617.0,0.00612028]
[1724152436377,0.788552,60618.0,60617.0,0.07207228]
[1724152436690,0.789552,60618.0,60617.0,0.07207228]
[1724152438579,0.789552,60618.0,60617.0,0.00612028]
[1724152447479,0.789552,60618.0,60617.0,0.12012028]
[1724152447880,0.7236,60618.0,60617.0,0.18607328]
[1724152448085,0.7236,60618.0,60617.0,0.21184898]
[1724152448086,0.78902499,60618.0,60617.0,0.21184898]
[1724152448293,0.7236,60618.0,60617.0,0.21184862]
[1724152449096,0.7236,60618.0,60617.0,0.18607328]
[1724152449285,0.7236,60618.0,60617.0,0.09784841]
[1724152449489,0.7236,60618.0,60617.0,0.09784908]
[1724152449989,0.7236,60618.0,60617.0,0.07207328]
[1724152450383,0.789552,60618.0,60617.0,0.18607328]
[1724152450796,0.7236,60618.0,60617.0,0.18607328]
[1724152451292,0.7236,60618.0,60617.0,0.21184946]
[1724152452698,0.7236,60618.0,60617.0,0.09784946]
[1724152452699,0.78902525,60618.0,60617.0,0.09784946]
[1724152452888,0.7236,60618.0,60617.0,0.21184946]
[1724152453088,0.7236,60618.0,60617.0,0.09784946]
[1724152454295,0.7236,60618.0,60617.0,0.09784876]
[1724152454495,0.7236,60618.0,60617.0,0.26113007]
[1724152454899,0.7236,60618.0,60617.0,0.2785944]
[1724152456002,0.7236,60618.0,60617.0,0.2785943]
[1724152457498,0.7236,60618.0,60617.0,0.22931299]
[1724152458299,0.7236,60618.0,60617.0,0.21184866]
[1724152459592,0.7236,60618.0,60617.0,0.18607328]
[1724152459887,0.7236,60618.0,60617.0,0.09784865]
[1724152459888,0.8376,60618.0,60617.0,0.09784865]
[1724152460091,0.8376,60618.0,60617.0,0.09784866]
[1724152460694,0.8376,60618.0,60617.0,0.14727208]
[1724152461602,0.98540753,60618.0,60617.0,0.09784866]
[1724152463100,1.48032753,60618.0,60617.0,0.09784866]
[1724152463398,1.398472,60618.0,60617.0,0.09784866]
[1724152463893,1.42519981,60618.0,60617.0,0.09784993]
[1724152465397,1.42519981,60618.0,60617.0,0.03189693]
[1724152466004,1.11962114,60618.0,60617.0,0.03189693]
[1724152466300,1.11962328,60618.0,60617.0,0.03189693]
[1724152466498,1.11962328,60618.0,60617.0,0.0813603]
[1724152466499,0.62470328,60618.0,60617.0,0.0813603]
[1724152469899,0.62470328,60618.0,60617.0,0.1473133]
[1724152470995,0.62470328,60618.0,60617.0,0.09784993]
[1724152471807,0.62470328,60618.0,60617.0,0.07207328]
[1724152472099,0.51070328,60618.0,60617.0,0.09784856]
[1724152474904,0.44475128,60618.0,60617.0,0.09784856]
[1724152475101,0.44475128,60618.0,60617.0,0.14731377]
[1724152477001,0.38952637,60618.0,60617.0,0.09784856]
[1724152479007,0.38952637,60618.0,60617.0,0.07207328]
[1724152479199,0.38952637,60618.0,60617.0,0.09784854]
[1724152481404,0.38952637,60618.0,60617.0,0.11531282]
[1724152482910,0.38952637,60618.0,60617.0,0.08953713]
[1724152483111,0.38952637,60618.0,60617.0,0.11531115]
[1724152483313,0.38952637,60618.0,60617.0,0.11531112]
[1724152484006,0.3628,60618.0,60617.0,0.11531112]
[1724152485412,0.3628,60618.0,60617.0,0.09784727]
[1724152486005,0.002,60618.0,60617.0,0.09784727]
[1724152488508,0.002,60618.0,60617.0,0.11531111]
[1724152490622,0.002,60618.0,60617.0,0.09784727]
[1724152490806,0.002,60618.0,60617.0,0.1153111]
[1724152492009,0.02872504,60618.0,60617.0,0.1153111]
[1724152493111,0.002,60618.0,60617.0,0.5420641]
[1724152493314,0.002,60618.0,60617.0,0.4761111]
[1724152493520,0.002,60618.0,60617.0,0.1153111]
[1724152493713,0.08393935,60618.0,60617.0,0.16475923]
[1724152494013,0.08393935,60618.0,60617.0,0.1153111]
[1724152494420,0.08393935,60618.0,60617.0,0.12152141]
[1724152494721,0.08393935,60618.0,60617.0,0.16475857]
[1724152495517,0.08393935,60618.0,60617.0,0.11531044]
[1724152496616,0.08393935,60618.0,60617.0,0.22931044]
[1724152497710,0.08393935,60618.0,60617.0,0.27054804]
[1724152498428,0.04916483,60622.0,60621.0,0.065949]
[1724152498623,0.04916483,60623.0,60622.0,0.131894]
[1724152498812,0.04916483,60624.0,60623.0,0.49484]
[1724152499119,0.43668289,60639.0,60625.0,0.065944]
[1724152499120,0.04916483,60629.0,60625.0,0.065944]
[1724152499318,0.04916483,60631.0,60625.0,0.69230359]
[1724152499513,0.04916483,60631.0,60625.0,1.58714359]
[1724152500206,0.04916483,60631.0,60625.0,1.71903159]
[1724152500414,0.04916483,60632.0,60631.0,0.065938]
[1724152500612,0.04916483,60632.0,60631.0,0.10917516]
[1724152500813,0.04916483,60632.0,60631.0,0.17503141]
[1724152501311,0.04916483,60633.0,60632.0,0.065937]
[1724152501511,0.04916483,60633.0,60632.0,0.2057105]
[1724152502112,0.04916483,60634.0,60633.0,0.065936]
[1724152502314,0.04916483,60635.0,60634.0,0.065934]
[1724152502517,0.04916483,60635.0,60634.0,0.179934]
[1724152503223,0.04916483,60636.0,60635.0,0.065933]
[1724152503417,0.04916483,60636.0,60635.0,0.179933]
[1724152503634,0.00024725,60638.0,60635.0,0.179933]
[1724152503635,0.04916483,60637.0,60636.0,0.065932]
[1724152503814,0.04941208,60638.0,60637.0,0.065931]
[1724152504329,0.00024725,60638.0,60637.0,0.065931]
[1724152505428,0.01024725,60638.0,60637.0,0.065931]
[1724152505727,0.02124725,60638.0,60637.0,0.066931]
[1724152506324,0.02124725,60638.0,60637.0,0.198793]
[1724152506524,0.02124725,60638.0,60637.0,0.60270732]
[1724152506721,0.02124725,60638.0,60637.0,0.57912772]
[1724152507124,0.02124725,60638.0,60637.0,0.62838863]
[1724152507329,0.02124725,60638.0,60637.0,0.60262471]
[1724152507517,0.02124725,60638.0,60637.0,0.97912575]
[1724152507829,0.01131638,60638.0,60637.0,1.63388575]
[1724152508616,0.01131638,60638.0,60637.0,1.64223341]
[1724152508617,0.01214088,60638.0,60637.0,1.64223341]
[1724152508818,0.01214088,60638.0,60637.0,1.87315341]
[1724152510525,0.01214088,60638.0,60637.0,1.43807475]
[1724152510732,0.01214088,60638.0,60637.0,1.5263128]
[1724152511418,0.01214088,60638.0,60637.0,1.8871128]
[1724152514225,0.01214088,60638.0,60637.0,1.9530438]
[1724152514428,0.01214088,60638.0,60637.0,1.96111546]
[1724152515231,0.07738532,60638.0,60637.0,1.96111546]
[1724152515429,0.06524925,60641.0,60639.0,0.131858]
[1724152515727,0.00024725,60644.0,60643.0,0.13185]
[1724152515932,0.00024725,60644.0,60643.0,0.39585]
[1724152517526,0.01424725,60644.0,60643.0,0.462775]
[1724152518326,0.02824725,60644.0,60643.0,0.463775]
[1724152518638,0.02824725,60644.0,60643.0,0.47356934]
[1724152519327,0.02824725,60644.0,60643.0,0.96824934]
[1724152519530,0.09349361,60644.0,60643.0,0.96824934]
[1724152519729,0.02824725,60644.0,60643.0,0.96824934]
[1724152520433,2.5e-07,60644.0,60643.0,1.36824934]
[1724152520632,6.1e-07,60645.0,60644.0,0.692452]
[1724152520936,6.1e-07,60645.0,60644.0,0.950352]
[1724152521131,0.08193547,60651.0,60650.0,0.131834]
[1724152521330,0.08193547,60651.0,60650.0,0.405834]
[1724152521526,0.08193547,60651.0,60650.0,0.900474]
[1724152522138,0.36104725,60657.0,60656.0,0.065911]
[1724152522830,0.00024725,60657.0,60656.0,0.065911]
[1724152523534,0.00024725,60657.0,60656.0,0.066911]
[1724152524530,0.00224725,60657.0,60656.0,0.067911]
[1724152525526,0.00224725,60657.0,60656.0,0.237911]
[1724152526930,0.00224725,60657.0,60656.0,0.24804834]
[1724152528939,0.00224725,60657.0,60656.0,0.36204834]
[1724152529143,0.06077464,60657.0,60656.0,0.36204834]
[1724152531338,0.06077464,60657.0,60656.0,0.42795934]
[1724152531737,0.1752344,60657.0,60656.0,0.42795934]
[1724152531932,0.06077464,60657.0,60656.0,0.42795934]
[1724152535046,0.06077464,60657.0,60656.0,0.36204834]
[1724152535342,0.19192171,60657.0,60656.0,0.36204834]
[1724152535747,0.19192031,60657.0,60656.0,0.36204834]
[1724152535938,0.06077324,60657.0,60656.0,0.36204834]
[1724152537140,0.00224725,60657.0,60656.0,0.41124182]
[1724152539447,0.00224725,60657.0,60656.0,0.36204834]
[1724152539642,0.00224725,60657.0,60656.0,0.41136658]
[1724152539852,0.00224725,60657.0,60656.0,0.36204834]
[1724152540550,0.00224725,60657.0,60656.0,0.42795934]
[1724152540749,0.00224725,60657.0,60656.0,0.47727749]
[1724152540952,0.00224725,60657.0,60656.0,0.42795934]
[1724152541151,0.00224725,60657.0,60656.0,0.49381559]
[1724152541444,0.00224725,60657.0,60656.0,0.42795934]
[1724152542450,0.00224725,60657.0,60656.0,0.49387034]
[1724152542657,0.0491369,60662.0,60661.0,0.13181]
[1724152542849,0.0491369,60665.0,60664.0,0.065902]
[1724152543050,0.0491369,60666.0,60665.0,0.065901]
[1724152543252,0.0491369,60667.0,60666.0,0.0659]
[1724152543455,0.0491369,60667.0,60666.0,0.22922305]
[1724152543648,0.3608,60669.0,60668.0,0.065898]
[1724152544048,0.4659343,60669.0,60668.0,0.05930821]
[1724152545646,0.41931737,60669.0,60668.0,0.22930821]
[1724152545849,0.56681669,60669.0,60668.0,0.22930821]
[1724152546353,0.065899,60667.0,60666.0,0.001]
[1724152546552,0.065899,60667.0,60660.0,0.00024725]
[1724152546553,0.065902,60665.0,60660.0,0.00024725]
[1724152546757,0.065902,60665.0,60660.0,0.22615325]
[1724152546758,0.3608,60661.0,60660.0,0.22615325]
[1724152546949,0.41931737,60661.0,60660.0,0.22615325]
[1724152547150,0.5155343,60661.0,60660.0,0.22615325]
[1724152548245,0.5155343,60661.0,60660.0,0.23515325]
[1724152549260,0.4104,60661.0,60660.0,0.34015325]
[1724152549465,0.51464482,60661.0,60660.0,0.34015325]
[1724152549668,0.67839542,60661.0,60660.0,0.34015325]
[1724152550366,0.51464482,60661.0,60660.0,0.34015325]
[1724152551475,0.67839542,60661.0,60660.0,0.34015325]
[1724152552069,0.3608,60661.0,60660.0,0.3894763]
[1724152552771,0.40998963,60661.0,60660.0,0.36590909]
[1724152552967,0.3608,60668.0,60660.0,0.66080309]
[1724152552968,0.04918963,60664.0,60660.0,0.66080309]
[1724152553275,0.04918963,60664.0,60663.0,0.179903]
[1724152553472,0.04918963,60665.0,60664.0,0.065902]
[1724152553673,0.04918963,60665.0,60664.0,0.20565784]
[1724152554268,0.3608,60668.0,60667.0,0.065899]
[1724152554571,0.3608,60668.0,60667.0,0.329899]
[1724152555474,0.3628,60668.0,60667.0,0.329899]
[1724152555667,0.3628,60668.0,60667.0,0.37924892]
[1724152556171,0.3608,60668.0,60667.0,0.38024892]
[1724152556874,0.3608,60668.0,60667.0,0.330899]
[1724152557269,0.3608,60668.0,60667.0,0.333899]
[1724152557775,0.3608,60668.0,60667.0,0.38324892]
[1724152557981,0.3608,60668.0,60667.0,0.38724892]
[1724152558471,0.3608,60668.0,60667.0,0.40800251]
[1724152559377,0.3608,60668.0,60667.0,0.38934839]
[1724152559672,0.3608,60668.0,60667.0,0.41510199]
[1724152562073,0.3608,60668.0,60667.0,0.36575207]
[1724152562375,0.3608,60668.0,60667.0,0.3556526]
[1724152562575,0.3608,60668.0,60667.0,0.35565266]
[1724152562974,0.131798,60667.0,60666.0,0.04934992]
[1724152563178,0.065902,60664.0,60661.0,0.04934992]
[1724152563373,0.065905,60661.0,60660.0,0.00024725]
[1724152563777,0.115405,60661.0,60660.0,0.00024725]
[1724152563973,3.885405,60661.0,60660.0,0.00024725]
[1724152565572,3.885405,60661.0,60660.0,0.11424725]
[1724152565879,3.885405,60661.0,60660.0,0.18015325]
[1724152566076,0.115405,60661.0,60660.0,0.18015325]
[1724152566380,0.117405,60661.0,60660.0,0.20591018]
[1724152568480,0.115405,60661.0,60660.0,0.20591018]
[1724152568684,0.0495,60661.0,60660.0,0.20591018]
[1724152569071,0.0505,60661.0,60660.0,0.20591018]
[1724152569473,0.001,60661.0,60660.0,0.20591018]
[1724152570073,0.001,60661.0,60660.0,0.18015325]
[1724152570274,0.001,60661.0,60660.0,0.2059099]
[1724152571984,0.3608,60662.0,60660.0,0.2059099]
[1724152572186,0.3608,60662.0,60661.0,0.09166165]
[1724152573693,0.426704,60662.0,60661.0,0.09166165]
[1724152574191,0.426704,60662.0,60661.0,0.091662]
[1724152574381,0.426704,60662.0,60661.0,0.065905]
[1724152574575,0.426704,60662.0,60661.0,0.09166203]
[1724152574980,0.427704,60662.0,60661.0,0.09166203]
[1724152576680,0.43770526,60662.0,60661.0,0.09166203]
[1724152578191,0.43770526,60662.0,60661.0,0.0916621]
[1724152579287,0.427704,60662.0,60661.0,0.0916621]
[1724152582889,0.06658426,60662.0,60661.0,0.0916621]
[1724152583200,0.001,60662.0,60661.0,0.0916621]
[1724152583896,0.06658552,60662.0,60661.0,0.0916621]
[1724152584291,0.001,60662.0,60661.0,0.0916621]
[1724152584492,0.3608,60663.0,60662.0,0.065904]
[1724152584697,0.3608,60663.0,60662.0,0.2056611]
[1724152585286,0.426703,60663.0,60662.0,0.0916611]
[1724152585692,0.426703,60663.0,60662.0,0.0267571]
[1724152586199,0.426703,60663.0,60662.0,0.02675708]
[1724152586693,0.426703,60663.0,60662.0,0.02675709]
[1724152587392,0.426703,60663.0,60662.0,0.066904]
[1724152587883,0.426703,60663.0,60662.0,0.09266109]
[1724152588090,0.427703,60663.0,60662.0,0.09166109]
[1724152588398,0.50969397,60663.0,60662.0,0.065904]
[1724152588699,0.50969397,60663.0,60662.0,0.09166097]
[1724152588998,0.427703,60663.0,60662.0,0.09166097]
[1724152589201,0.50969397,60663.0,60662.0,0.09166097]
[1724152589890,0.44379097,60663.0,60662.0,0.09166097]
[1724152590086,0.44379097,60663.0,60662.0,0.065904]
[1724152590292,0.44379097,60663.0,60662.0,0.09166106]
[1724152591400,0.50869397,60663.0,60662.0,0.09166106]
[1724152591596,0.50969397,60663.0,60662.0,0.09166106]
[1724152592204,0.44379097,60663.0,60662.0,0.09166106]
[1724152592595,0.44279097,60663.0,60662.0,0.09166106]
[1724152592796,0.44279097,60663.0,60662.0,0.14101098]
[1724152592797,0.44379097,60663.0,60662.0,0.14101098]
[1724152592994,0.3618,60663.0,60662.0,0.09166106]
[1724152593992,0.427703,60663.0,60662.0,0.09166106]
[1724152594190,0.427703,60663.0,60662.0,0.065904]
[1724152594399,0.427703,60663.0,60662.0,0.09166075]
[1724152595399,0.63431317,60663.0,60662.0,0.02575675]
[1724152595611,0.63431317,60663.0,60662.0,0.07519741]
[1724152595995,0.63431317,60663.0,60660.0,0.00024725]
[1724152595996,0.131808,60662.0,60661.0,0.04944066]
[1724152596194,0.065911,60656.0,60655.0,0.04944839]
[1724152596399,0.065911,60656.0,60647.0,0.11536839]
[1724152596400,0.065919,60648.0,60647.0,0.11536839]
[1724152596604,0.06592,60647.0,60640.0,0.06580371]
[1724152596808,0.065928,60640.0,60638.0,0.13173271]
[1724152597010,0.4748,60641.0,60639.0,0.01746081]
[1724152597208,0.540727,60641.0,60638.0,0.065929]
[1724152597424,0.0655369,60639.0,60638.0,0.065929]
[1724152597600,0.0655369,60640.0,60639.0,0.065929]
[1724152597800,0.0655369,60640.0,60639.0,0.08338994]
[1724152598108,0.3608,60641.0,60640.0,0.065928]
[1724152599108,0.3608,60641.0,60640.0,0.235928]
[1724152600299,0.3608,60641.0,60640.0,0.249928]
[1724152600800,0.00024725,60646.0,60644.0,0.065923]
[1724152602514,0.00024725,60646.0,60645.0,0.065923]
[1724152603517,0.00024725,60646.0,60645.0,0.112823]
[1724152603710,0.00024725,60646.0,60645.0,0.124823]
[1724152604219,0.00024725,60646.0,60645.0,0.1345988]
[1724152604714,0.00024725,60646.0,60645.0,0.1485988]
[1724152608112,0.00024725,60646.0,60645.0,0.17436056]
[1724152608915,0.00024725,60646.0,60645.0,0.1485988]
[1724152609122,0.00024725,60646.0,60645.0,0.17436056]
[1724152609317,0.00024725,60646.0,60645.0,0.33436056]
[1724152610317,0.00024725,60646.0,60645.0,0.3343604]
[1724152611410,0.4099346,60650.0,60645.0,0.8290404]
[1724152611610,0.0655369,60654.0,60645.0,0.8290404]
[1724152611611,0.0491346,60654.0,60653.0,0.065914]
[1724152611820,0.0491346,60656.0,60654.0,0.065913]
[1724152612029,0.0491346,60656.0,60649.0,0.2849]
[1724152612030,0.0491346,60656.0,60655.0,0.065912]
[1724152612322,0.3608,60657.0,60655.0,0.065912]
[1724152613722,0.3608,60657.0,60655.0,0.066912]
[1724152614111,0.3608,60657.0,60656.0,0.065911]
[1724152615616,0.3608,60657.0,60656.0,0.067911]
[1724152616228,0.40991538,60657.0,60656.0,0.067911]
[1724152616526,0.40990896,60657.0,60656.0,0.207911]
[1724152616728,0.3608,60657.0,60656.0,0.123411]
[1724152617620,0.3608,60657.0,60656.0,0.15716886]
[1724152618028,0.06578415,60662.0,60656.0,0.08125786]
[1724152618029,0.04910896,60660.0,60656.0,0.08125786]
[1724152618219,0.04910896,60660.0,60657.0,0.02575786]
[1724152618420,0.0491084,60660.0,60659.0,0.179807]
[1724152618618,0.0491084,60661.0,60660.0,0.065906]
[1724152618829,0.00024725,60662.0,60659.0,0.1139]
[1724152619026,0.06578415,60662.0,60659.0,0.1139]
[1724152619632,0.06578415,60662.0,60659.0,0.1179]
[1724152620139,0.18005125,60662.0,60661.0,0.065905]
[1724152620536,0.11414725,60662.0,60650.0,0.00024725]
[1724152620730,0.065921,60647.0,60642.0,0.06580371]
[1724152621042,0.065931,60638.0,60636.0,0.065932]
[1724152621247,0.52379133,60637.0,60635.0,1.75138]
[1724152621543,0.52379133,60637.0,60635.0,1.75002]
[1724152621544,0.13134591,60636.0,60635.0,1.75002]
[1724152621845,0.065932,60636.0,60635.0,1.75002]
[1724152623345,0.13129312,60636.0,60635.0,1.75002]
[1724152623842,1.03005312,60636.0,60635.0,1.75002]
[1724152624343,0.964692,60636.0,60635.0,1.75002]
[1724152624942,0.960692,60636.0,60635.0,1.75002]
[1724152625147,0.966692,60636.0,60635.0,1.75102]
[1724152626037,1.251692,60636.0,60635.0,1.75102]
[1724152626234,1.317624,60636.0,60635.0,1.75102]
[1724152627637,5.087624,60636.0,60635.0,1.75102]
[1724152629037,5.153556,60636.0,60635.0,1.41517319]
[1724152630131,5.153556,60636.0,60635.0,1.34727319]
[1724152630547,5.1802828,60636.0,60635.0,1.34727319]
[1724152631349,5.27822045,60636.0,60635.0,1.34727319]
[1724152632436,5.1802828,60636.0,60635.0,1.34727319]
[1724152634545,5.153556,60636.0,60635.0,1.34727319]
[1724152634939,5.23503557,60636.0,60635.0,1.34727319]
[1724152635440,5.153556,60636.0,60635.0,1.34727319]
[1724152636748,5.2186855,60636.0,60635.0,1.34727319]
[1724152636944,5.21868549,60636.0,60635.0,1.34727319]
[1724152637149,5.153556,60636.0,60635.0,1.34727319]
[1724152637350,5.21867708,60636.0,60635.0,1.34727319]
[1724152638251,3.907864,60636.0,60635.0,1.34727319]
[1724152641250,4.592864,60636.0,60635.0,1.34727319]
[1724152641449,5.20238786,60636.0,60635.0,1.34727319]
[1724152641658,5.13645586,60636.0,60635.0,1.34727319]
[1724152641846,5.087624,60636.0,60635.0,1.34727319]
[1724152642155,0.006,60636.0,60635.0,1.41320619]
[1724152647652,0.3608,60637.0,60636.0,0.065932]
[1724152648457,0.4096358,60637.0,60636.0,0.065932]
[1724152648852,0.2859,60637.0,60636.0,0.065932]
[1724152649254,0.2919,60637.0,60636.0,0.066932]
[1724152649554,0.34102862,60637.0,60636.0,0.066932]
[1724152649957,0.2919,60637.0,60636.0,0.071932]
[1724152650857,0.34102862,60637.0,60636.0,0.071932]
[1724152651058,0.2919,60637.0,60636.0,0.071932]
[1724152651763,0.2919,60637.0,60636.0,0.070932]
[1724152651960,0.351831,60637.0,60636.0,0.124632]
[1724152652455,0.351831,60637.0,60636.0,0.122632]
[1724152652649,0.351831,60637.0,60636.0,0.120632]
[1724152653057,0.351831,60637.0,60636.0,0.116632]
[1724152653263,0.351831,60637.0,60636.0,0.118632]
[1724152653456,0.351831,60637.0,60636.0,0.117632]
[1724152653862,0.351831,60637.0,60636.0,0.116632]
[1724152654766,4.18694335,60637.0,60636.0,0.116632]
[1724152655266,4.18694335,60637.0,60636.0,0.115632]
[1724152655468,4.121831,60637.0,60636.0,0.115632]
[1724152655967,4.121831,60637.0,60636.0,0.114632]
[1724152656157,0.351831,60637.0,60636.0,0.114632]
[1724152656357,0.41694335,60637.0,60636.0,0.114632]
[1724152657163,0.35101235,60637.0,60636.0,0.114632]
[1724152658162,0.351831,60637.0,60636.0,0.114632]
[1724152658354,0.41694335,60637.0,60636.0,0.114632]
[1724152658553,0.41694335,60637.0,60636.0,0.115632]
[1724152658554,0.41794335,60637.0,60636.0,0.115632]
[1724152659166,0.41894335,60637.0,60636.0,0.115632]
[1724152659357,0.41894335,60637.0,60636.0,0.114632]
[1724152659758,0.41694335,60637.0,60636.0,0.114632]
[1724152660960,0.35101235,60637.0,60636.0,0.114632]
[1724152662760,0.35101235,60637.0,60636.0,0.118632]
[1724152663065,0.35101235,60637.0,60636.0,0.124632]
[1724152663664,0.35101235,60637.0,60636.0,0.125632]
[1724152663867,0.35101235,60637.0,60636.0,0.119632]
[1724152664063,0.42591235,60638.0,60637.0,0.065931]
[1724152664369,0.06511235,60639.0,60638.0,0.06593]
[1724152664871,0.426728,60640.0,60639.0,0.065929]
[1724152666267,0.426728,60640.0,60639.0,0.068929]
[1724152666862,0.426728,60640.0,60639.0,0.073929]
[1724152668269,0.426728,60640.0,60639.0,0.070929]
[1724152668572,0.426728,60640.0,60639.0,0.066929]
[1724152668872,0.426728,60640.0,60639.0,0.070929]
[1724152669073,0.426728,60640.0,60639.0,0.069929]
[1724152669271,0.08147957,60641.0,60640.0,0.065928]
[1724152669467,0.00024725,60642.0,60641.0,0.065927]
[1724152670665,0.06585912,60642.0,60641.0,0.065927]
[1724152671573,0.06585912,60642.0,60641.0,0.066927]
[1724152671968,0.00024725,60642.0,60641.0,0.132854]
[1724152672872,0.00024725,60642.0,60641.0,1.528374]
[1724152673076,0.00024725,60642.0,60641.0,1.55413597]
[1724152673375,0.06561187,60650.0,60649.0,0.065918]
[1724152673565,0.06561187,60650.0,60646.0,0.065921]
[1724152673566,0.06561187,60651.0,60650.0,0.065917]
[1724152674370,0.06561187,60652.0,60651.0,0.065916]
[1724152674564,0.06561187,60653.0,60652.0,0.065915]
[1724152674975,0.06561187,60656.0,60648.0,0.71297828]
[1724152675177,0.04918409,60653.0,60652.0,0.065915]
[1724152675380,0.04918409,60655.0,60650.0,0.065917]
[1724152675583,0.00024725,60657.0,60650.0,0.065917]
[1724152675584,0.04918409,60656.0,60655.0,0.065912]
[1724152675766,0.00024725,60657.0,60656.0,0.065911]
[1724152678074,0.04937059,60657.0,60656.0,0.065911]
[1724152678973,0.00024725,60657.0,60656.0,0.065911]
[1724152679974,0.06615625,60657.0,60656.0,0.065911]
[1724152680675,0.06615625,60657.0,60647.0,0.1415]
[1724152680676,0.42695625,60657.0,60650.0,0.065916]
[1724152680880,0.426715,60652.0,60651.0,0.065916]
[1724152681082,0.47582018,60652.0,60651.0,0.065916]
[1724152681377,0.065919,60648.0,60647.0,0.06592]
[1724152681775,0.11501828,60648.0,60647.0,0.06592]
[1724152681976,0.065922,60645.0,60644.0,0.00024725]
[1724152682170,0.47581882,60645.0,60644.0,0.00024725]
[1724152683583,0.426722,60645.0,60644.0,0.00024725]
[1724152683982,0.426722,60645.0,60644.0,0.06617125]
[1724152684178,0.47582209,60645.0,60644.0,0.06617125]
[1724152684481,0.47582209,60645.0,60644.0,0.06817125]
[1724152684676,0.40990009,60645.0,60644.0,0.06817125]
[1724152684884,0.04910639,60648.0,60647.0,0.06592]
[1724152685074,0.04910639,60649.0,60648.0,0.065919]
[1724152685271,0.04910704,60649.0,60647.0,0.06592]
[1724152685878,0.04910704,60648.0,60647.0,0.06592]
[1724152686077,0.04910704,60649.0,60647.0,0.06592]
[1724152686384,0.04910704,60649.0,60648.0,0.065919]
[1724152686385,0.05210704,60649.0,60648.0,0.065919]
[1724152686681,0.003,60649.0,60648.0,0.065919]
[1724152687078,0.065921,60647.0,60644.0,0.06617025]
[1724152687285,0.47583012,60645.0,60644.0,0.00024725]
[1724152687479,0.426722,60645.0,60644.0,0.00024725]
[1724152687685,0.49219558,60645.0,60644.0,0.00024725]
[1724152687880,0.426722,60645.0,60644.0,0.00024725]
[1724152688182,0.49219794,60645.0,60644.0,0.00024725]
[1724152688386,0.426722,60645.0,60644.0,0.00024725]
[1724152689577,0.427722,60645.0,60644.0,0.00124725]
[1724152690377,0.065931,60637.0,60635.0,1.34627319]
[1724152690578,0.3608,60636.0,60635.0,1.34627319]
[1724152690783,0.3608,60636.0,60635.0,1.41220619]
[1724152691583,0.3608,60636.0,60635.0,1.41620619]
[1724152692179,0.3608,60636.0,60635.0,1.41320619]
[1724152692582,0.47584501,60636.0,60635.0,1.34727319]
[1724152692778,0.426732,60636.0,60635.0,1.34727319]
[1724152694284,0.426732,60636.0,60635.0,1.34627319]
[1724152694484,0.426732,60636.0,60635.0,1.34727319]
[1724152694988,0.426732,60636.0,60635.0,1.34627319]
[1724152695193,0.49221601,60636.0,60635.0,1.34627319]
[1724152695692,0.426732,60636.0,60635.0,1.34627319]
[1724152695879,0.428732,60636.0,60635.0,1.34627319]
[1724152696890,0.989424,60636.0,60635.0,1.34627319]
[1724152697188,0.989424,60636.0,60635.0,1.29806135]
[1724152697189,1.41614779,60636.0,60635.0,1.29806135]
[1724152697588,5.18614779,60636.0,60635.0,1.29806135]
[1724152697790,4.83294779,60636.0,60635.0,1.29806135]
[1724152697983,4.81630242,60636.0,60635.0,1.29806135]
[1724152698387,4.8980979,60636.0,60635.0,1.29806135]
[1724152698579,5.21630242,60636.0,60635.0,1.29806135]
[1724152699389,5.29806601,60636.0,60635.0,1.29806135]
[1724152700492,5.21630242,60636.0,60635.0,1.29806135]
[1724152701098,5.57710242,60636.0,60635.0,1.29806135]
[1724152702994,5.64303442,60636.0,60635.0,1.29806135]
[1724152703803,5.24303442,60636.0,60635.0,1.29806135]
[1724152703995,5.64303442,60636.0,60635.0,1.29806135]
[1724152704395,5.24303442,60636.0,60635.0,1.29806135]
[1724152704789,5.64303442,60636.0,60635.0,1.29806135]
[1724152705397,5.72479801,60636.0,60635.0,1.29806135]
[1724152706399,5.64303442,60636.0,60635.0,1.29806135]
[1724152707701,5.7247287,60636.0,60635.0,1.29806135]
[1724152708001,5.66975959,60636.0,60635.0,1.29806135]
[1724152708199,5.6697596,60636.0,60635.0,1.29806135]
[1724152712498,5.7837596,60636.0,60635.0,1.29806135]
[1724152713401,5.6697596,60636.0,60635.0,1.29806135]
[1724152713606,5.7837596,60636.0,60635.0,1.29806135]
[1724152714108,5.3369596,60636.0,60635.0,1.29806135]
[1724152714609,5.43489725,60636.0,60635.0,1.29806135]
[1724152715395,5.43489715,60636.0,60635.0,1.29806135]
[1724152715599,4.8421995,60636.0,60635.0,1.29806135]
[1724152717009,4.84219886,60636.0,60635.0,1.29806135]
[1724152720505,4.87403787,60636.0,60635.0,1.29806135]
[1724152720704,4.84219886,60636.0,60635.0,1.29806135]
[1724152722412,5.76879867,60636.0,60635.0,0.74817535]
[1724152724709,5.81169538,60636.0,60635.0,0.00817535]
[1724152725612,5.87200144,60636.0,60635.0,0.00817535]
[1724152726006,5.87196213,60636.0,60635.0,0.00817535]
[1724152726207,0.197817,60630.0,60629.0,0.00024725]
[1724152726511,0.73118568,60630.0,60629.0,0.00024725]